bitfinex-derivatives/quotes_ETHF0:USTF0_20251126
["timestamp","ask_amount","ask_price","bid_price","bid_amount"]
[1764173141773,0.0039522,2946.7,2946.5,2.6375125]
[1764173142080,0.0039522,2946.7,2946.6,1.43470728]
[1764173142579,3.8406,2947.2,2946.6,1.43470728]
[1764173142774,3.302,2947.2,2946.8,0.89930698]
[1764173142970,0.8575,2947.0,2946.9,1.43470728]
[1764173143683,0.86125413,2947.0,2946.9,1.43470728]
[1764173144271,4.64025413,2947.0,2946.9,1.43470728]
[1764173145379,4.64025413,2947.0,2946.9,0.90386387]
[1764173145879,0.8575,2946.4,2946.2,1.20280522]
[1764173146079,0.8575,2946.4,2946.1,1.20789273]
[1764173146876,0.8575,2946.2,2946.1,0.00508751]
[1764173148389,4.6855,2946.2,2945.3,4.1425714]
[1764173148683,4.6855,2946.2,2945.3,1.20280522]
[1764173148980,0.8575,2945.9,2945.3,1.20280522]
[1764173149176,0.8575,2945.9,2945.8,0.53378516]
[1764173149779,0.8575,2945.3,2945.2,1.20280522]
[1764173149979,0.8575,2945.3,2945.0,1.20280522]
[1764173150183,0.8575,2945.3,2944.9,1.20280522]
[1764173150383,0.8575,2945.3,2944.8,1.20280522]
[1764173150781,0.8575,2945.3,2944.8,0.00794927]
[1764173150981,0.8575,2944.9,2944.8,0.00794927]
[1764173151182,0.86097213,2944.9,2944.8,0.00794927]
[1764173151687,0.86097213,2944.9,2943.9,1.80420783]
[1764173151688,0.5224,2944.8,2943.9,1.20280522]
[1764173151983,0.5224,2944.8,2943.8,1.20280522]
[1764173152285,0.5224,2944.8,2943.7,1.20280522]
[1764173152484,0.804,2944.7,2943.7,0.00237538]
[1764173152688,0.8575,2944.1,2944.0,0.00508751]
[1764173153580,2.99308751,2944.5,2944.0,0.00508751]
[1764173153774,0.00508751,2944.5,2944.0,0.00508751]
[1764173155386,0.00508751,2944.5,2944.4,0.7969]
[1764173157181,0.00347213,2944.9,2944.4,6.7969]
[1764173157389,0.00347213,2944.9,2944.8,0.7969]
[1764173158192,0.00347213,2944.9,2944.2,0.5066]
[1764173158392,0.00347213,2944.9,2944.8,0.7969]
[1764173159492,0.00347213,2944.9,2944.8,1.3035]
[1764173160186,0.5224,2946.0,2945.0,0.7969]
[1764173160697,0.5224,2946.0,2944.8,0.5066]
[1764173160889,0.394,2945.9,2944.8,0.5066]
[1764173161191,0.00508751,2945.6,2944.8,0.5066]
[1764173163694,0.00508751,2945.6,2944.9,0.87892478]
[1764173163994,0.00508751,2945.6,2944.8,0.5066]
[1764173164499,0.00508751,2945.6,2944.9,0.87944968]
[1764173164698,0.00508751,2945.6,2944.8,0.5066]
[1764173164996,0.00508751,2945.6,2944.9,0.87955374]
[1764173165192,0.00508751,2945.6,2945.5,0.7969]
[1764173165497,0.00508751,2945.6,2945.4,0.4778]
[1764173166495,0.00508751,2945.6,2945.5,0.8201]
[1764173169099,0.279,2946.9,2945.8,0.7523]
[1764173169290,0.16971,2947.3,2945.8,0.7523]
[1764173169487,2.68,2947.1,2945.8,0.7523]
[1764173169996,0.00508751,2946.7,2946.2,0.00508751]
[1764173171995,0.8058,2946.3,2946.2,0.00508751]
[1764173172304,2.15876,2946.3,2945.8,0.00379949]
[1764173173188,2.15876,2946.3,2945.8,0.008887]
[1764173173394,3.759,2946.4,2945.8,0.008887]
[1764173173595,0.3431,2946.6,2945.8,0.008887]
[1764173173794,4.009,2946.5,2945.8,0.008887]
[1764173177810,0.3431,2946.6,2945.8,0.008887]
[1764173178007,4.277,2946.5,2945.8,0.008887]
[1764173178204,0.3431,2946.6,2945.8,0.008887]
[1764173178414,4.3651,2946.6,2945.8,0.008887]
[1764173180719,4.53484,2946.6,2945.8,0.008887]
[1764173181736,4.53484,2946.6,2945.8,0.761187]
[1764173182018,0.8058,2945.9,2945.8,0.008887]
[1764173182422,0.16975,2946.5,2945.8,0.761187]
[1764173182722,0.8058,2945.9,2945.8,0.008887]
[1764173183524,6.8058,2945.9,2944.5,0.4786]
[1764173183723,0.16981,2945.4,2944.6,0.88154803]
[1764173183924,0.8058,2944.7,2943.8,1.20280522]
[1764173184123,0.8058,2944.7,2943.9,0.88188647]
[1764173184323,0.8058,2944.7,2944.0,0.88188647]
[1764173184528,0.8058,2944.2,2944.1,0.00508751]
[1764173185027,0.00508751,2944.6,2944.1,0.00508751]
[1764173185219,0.8058,2944.2,2944.1,0.00508751]
[1764173186927,0.4136,2944.5,2944.1,0.00508751]
[1764173187121,0.8058,2944.2,2944.1,0.00508751]
[1764173187327,1.447,2944.4,2944.1,0.00508751]
[1764173187729,0.8058,2944.2,2944.1,0.00508751]
[1764173191629,0.00508751,2944.6,2944.5,1.2309]
[1764173191832,0.00508751,2944.6,2944.5,0.7523]
[1764173192536,0.00508751,2944.6,2944.5,1.2309]
[1764173193134,0.00508751,2944.6,2944.5,2.10952607]
[1764173193434,0.00291795,2944.7,2944.6,0.7523]
[1764173194435,0.00508751,2944.9,2944.8,0.7523]
[1764173195336,0.00870278,2944.9,2944.8,0.7523]
[1764173196839,0.81450278,2944.9,2944.1,0.00508751]
[1764173197334,0.81450278,2944.9,2944.0,0.48179024]
[1764173197335,0.6918,2944.1,2943.3,1.20280522]
[1764173197638,0.6918,2944.1,2943.4,0.87992884]
[1764173197938,0.6918,2944.1,2942.8,1.20280522]
[1764173198239,0.6918,2944.1,2943.1,0.88014494]
[1764173198538,0.6918,2944.1,2943.3,0.00508751]
[1764173200432,0.6918,2944.1,2943.5,0.4356]
[1764173202943,0.404,2944.5,2943.5,0.4356]
[1764173203140,0.404,2944.5,2943.6,0.88002929]
[1764173203339,0.17855278,2944.9,2943.5,3.03196455]
[1764173203534,0.17855278,2944.9,2943.6,0.88009971]
[1764173203735,0.17855278,2944.9,2943.5,3.03196455]
[1764173204041,0.17855278,2944.9,2943.6,0.88009956]
[1764173204340,0.17855278,2944.9,2943.5,3.03196455]
[1764173204542,0.17855278,2944.9,2943.6,0.88021344]
[1764173204734,0.00870278,2944.9,2944.0,0.4356]
[1764173205953,0.00870278,2944.9,2944.3,2.59636455]
[1764173206844,0.00870278,2944.9,2944.0,0.4356]
[1764173207040,0.00870278,2944.9,2944.1,3.47610048]
[1764173207246,0.00870278,2944.9,2944.1,2.59636455]
[1764173208437,0.00870278,2944.9,2944.2,0.88070729]
[1764173208638,0.00870278,2944.9,2944.1,2.59636455]
[1764173208838,0.00870278,2944.9,2944.2,0.88070691]
[1764173209045,0.00870278,2944.9,2944.1,2.59636455]
[1764173209238,0.00870278,2944.9,2944.2,0.88065052]
[1764173209441,0.00870278,2944.9,2944.1,2.59636455]
[1764173209738,0.00870278,2944.9,2944.2,0.88104724]
[1764173209934,0.00870278,2944.9,2944.1,2.59636455]
[1764173210140,0.00870278,2944.9,2944.8,0.7271]
[1764173215644,0.70050278,2944.9,2944.8,0.7271]
[1764173216944,0.70050278,2944.9,2944.5,0.4356]
[1764173217144,0.70050278,2944.9,2944.6,0.88308729]
[1764173217345,0.70050278,2944.9,2944.5,0.4356]
[1764173217943,0.6918,2944.6,2944.1,0.89887355]
[1764173218245,0.6918,2944.3,2944.2,0.88317501]
[1764173218637,0.6918,2944.1,2943.7,0.89887355]
[1764173218850,0.6918,2943.9,2943.8,0.88336881]
[1764173219352,0.6918,2943.9,2943.8,1.61046881]
[1764173220053,0.6918,2943.9,2943.8,0.88336881]
[1764173220646,0.404,2944.5,2943.8,1.61046881]
[1764173220847,0.00870278,2944.9,2944.0,0.4356]
[1764173221042,0.00870278,2944.9,2944.1,0.88356477]
[1764173221248,0.00870278,2944.9,2944.0,0.4356]
[1764173221449,0.00870278,2944.9,2944.8,0.7271]
[1764173221955,0.00870278,2944.9,2944.8,1.61058291]
[1764173222551,0.70050278,2944.9,2944.8,0.88348291]
[1764173223556,0.00870278,2944.9,2944.8,1.61058291]
[1764173223743,0.00870278,2944.9,2944.8,0.88348291]
[1764173224149,0.70050278,2944.9,2944.5,0.4356]
[1764173224455,0.00870278,2944.9,2944.8,0.7271]
[1764173226257,0.00870278,2944.9,2944.8,1.61134767]
[1764173226651,0.16979,2945.9,2944.8,1.61134767]
[1764173226956,1.51,2945.8,2945.0,0.3969]
[1764173227860,0.00508751,2945.7,2945.1,0.00508751]
[1764173228259,0.6415,2945.2,2945.1,0.00508751]
[1764173230347,2.59636455,2945.6,2943.9,2.59636455]
[1764173230348,0.6415,2944.6,2944.4,0.89887355]
[1764173230548,0.6415,2944.6,2944.5,0.88377693]
[1764173231554,0.6415,2944.6,2944.3,0.00508751]
[1764173231761,0.2169,2945.0,2944.3,0.00508751]
[1764173231762,0.646,2944.4,2944.3,0.00508751]
[1764173232262,0.646,2943.8,2943.7,0.89887355]
[1764173232461,0.646,2943.8,2943.2,0.89887355]
[1764173232660,0.646,2943.8,2943.3,0.88532746]
[1764173232959,0.646,2943.5,2943.4,0.88532746]
[1764173233155,0.64890325,2943.5,2943.4,0.88532746]
[1764173233762,0.78900325,2943.5,2943.2,0.00508751]
[1764173234061,0.646,2943.4,2943.3,0.87893158]
[1764173235058,0.646,2942.7,2942.3,0.89887355]
[1764173235263,4.46036455,2943.4,2942.6,0.6415]
[1764173235456,2.14090325,2943.5,2942.6,0.6415]
[1764173236163,2.14090325,2943.5,2942.8,0.00344151]
[1764173236765,4.052,2943.4,2942.8,0.00344151]
[1764173237158,0.35990325,2943.5,2942.8,0.00344151]
[1764173237463,0.646,2942.9,2942.8,0.00344151]
[1764173238365,4.39790325,2943.5,2942.8,0.64494151]
[1764173238761,0.00290325,2943.5,2942.8,0.64494151]
[1764173239859,0.646,2942.9,2942.8,0.00344151]
[1764173240659,0.35990325,2943.5,2942.8,0.00344151]
[1764173241056,0.00290325,2943.5,2942.8,0.00344151]
[1764173242968,0.64890325,2943.5,2943.0,0.3609]
[1764173243456,0.00290325,2943.5,2943.4,0.6415]
[1764173247564,0.00290325,2943.5,2943.0,0.3609]
[1764173249168,0.646,2943.1,2942.8,0.00344151]
[1764173249564,0.00290325,2943.5,2943.0,1.0024]
[1764173251171,3.325,2943.4,2942.8,0.64494151]
[1764173251563,4.22790325,2943.5,2942.8,0.64494151]
[1764173251866,0.00290325,2943.5,2942.8,0.64494151]
[1764173254268,0.00290325,2943.5,2943.4,0.6415]
[1764173255573,0.64890325,2943.5,2943.4,0.6415]
[1764173256368,0.00290325,2943.5,2943.4,0.6415]
[1764173257367,0.00290325,2943.5,2943.4,1.51648566]
[1764173257568,0.16986,2944.6,2943.6,0.5823]
[1764173257871,0.52686,2944.6,2943.6,0.5823]
[1764173258571,0.52944734,2944.6,2943.6,0.5823]
[1764173258772,0.00509623,2944.4,2943.6,0.5823]
[1764173259170,0.00509623,2944.4,2944.3,0.5823]
[1764173262875,0.00258734,2944.6,2944.5,0.948]
[1764173264581,0.6127,2944.1,2943.7,0.89887355]
[1764173264775,0.6127,2944.1,2943.5,0.3657]
[1764173264981,0.6127,2944.1,2943.6,0.87773838]
[1764173265277,0.3347,2944.5,2944.0,0.948]
[1764173265480,0.00258734,2944.6,2944.0,0.948]
[1764173267375,0.00258734,2944.6,2944.5,0.948]
[1764173274273,0.61528734,2944.6,2943.9,3.84318963]
[1764173274580,0.00258734,2944.6,2944.5,0.948]
[1764173280800,2.74530059,2946.5,2944.7,0.5823]
[1764173280988,0.261,2947.0,2945.5,0.3657]
[1764173281192,3.02937996,2947.0,2945.6,0.87361337]
[1764173281386,0.261,2947.0,2945.7,0.87361337]
[1764173281692,0.261,2947.0,2945.5,0.3657]
[1764173281999,0.00509623,2946.5,2946.0,0.37079623]
[1764173282194,0.6127,2946.1,2946.0,0.00509623]
[1764173282388,0.6127,2946.1,2945.5,0.0024132]
[1764173282593,0.6127,2945.6,2945.5,0.0024132]
[1764173283599,0.6127,2945.4,2944.2,0.89887355]
[1764173283900,0.50451,2945.5,2944.0,0.3657]
[1764173283901,0.6127,2944.6,2944.0,0.3657]
[1764173284093,0.3347,2944.5,2943.1,0.89887355]
[1764173284290,0.3347,2944.5,2943.0,0.3657]
[1764173284490,2.004,2944.8,2943.6,0.87580767]
[1764173284698,2.004,2944.8,2943.7,0.87580767]
[1764173284897,0.00509623,2944.5,2944.4,0.5823]
[1764173285395,0.61779623,2944.5,2944.0,0.37079623]
[1764173285585,0.00509623,2944.5,2944.0,0.37079623]
[1764173285785,0.00509623,2944.5,2944.4,0.5181]
[1764173286186,0.55169623,2944.5,2944.0,0.37079623]
[1764173287091,0.00509623,2944.5,2944.4,0.5181]
[1764173288296,0.00509623,2944.5,2944.0,0.37079623]
[1764173289198,0.5466,2944.1,2944.0,0.00509623]
[1764173291196,0.71649,2944.1,2944.0,0.00509623]
[1764173291395,0.5466,2943.1,2942.5,0.3657]
[1764173291598,0.5466,2943.1,2942.0,1.22367355]
[1764173291795,0.5466,2943.1,2942.1,0.87804515]
[1764173292000,0.0915,2943.0,2942.0,0.3248]
[1764173292192,0.3239,2943.5,2942.0,0.3248]
[1764173292396,0.00509623,2943.0,2942.5,0.00343279]
[1764173292607,0.5466,2942.6,2942.5,0.00343279]
[1764173292904,0.55014296,2942.6,2942.5,0.00343279]
[1764173293904,0.5466,2942.1,2942.0,0.0030715]
[1764173294107,0.17003,2941.7,2940.4,0.89887355]
[1764173294407,0.17003,2941.6,2940.0,0.3248]
[1764173294797,0.00509623,2941.3,2941.2,0.8429]
[1764173295209,0.00509623,2941.3,2941.2,0.84536337]
[1764173297406,0.00509623,2941.3,2941.2,0.00246337]
[1764173298002,0.00509623,2941.3,2941.2,0.84536337]
[1764173299000,0.3239,2942.5,2941.2,6.84536337]
[1764173299200,0.00354296,2942.6,2941.2,0.84536337]
[1764173299402,0.3239,2942.4,2941.2,0.84536337]
[1764173299601,0.2554,2941.8,2941.2,0.00246337]
[1764173299805,0.42542,2941.8,2941.2,0.00246337]
[1764173300002,0.43051623,2941.8,2941.2,0.0075596]
[1764173300902,2.21411623,2941.8,2941.2,0.3323596]
[1764173301606,4.12011623,2941.8,2941.2,0.3323596]
[1764173302503,0.17511623,2941.8,2941.2,0.3323596]
[1764173302704,4.54711623,2941.8,2941.2,0.3323596]
[1764173302902,4.37709623,2941.8,2941.2,0.3323596]
[1764173304203,4.63249623,2941.8,2941.2,0.0075596]
[1764173304903,4.80251623,2941.8,2941.2,0.0075596]
[1764173305101,0.5466,2941.3,2941.2,0.0075596]
[1764173305509,0.17008,2940.9,2940.0,0.3248]
[1764173305703,0.3239,2941.5,2940.0,0.3248]
[1764173305899,0.964,2941.1,2940.0,0.3248]
[1764173306500,1.13406,2941.1,2940.0,0.32875065]
[1764173306699,0.17008,2940.9,2940.0,0.32875065]
[1764173307215,0.0915,2941.0,2940.0,0.32875065]
[1764173307504,0.17009,2940.7,2940.0,0.32875065]
[1764173308014,0.17005,2941.3,2940.0,0.32875065]
[1764173308301,0.17006,2941.2,2940.0,0.32875065]
[1764173308506,0.17006,2941.1,2940.0,0.32875065]
[1764173309503,0.3239,2941.5,2940.0,0.32875065]
[1764173309504,0.3239,2941.5,2940.1,2.94431608]
[1764173309699,0.49394,2941.5,2940.1,2.94431608]
[1764173309901,0.17004,2941.4,2940.0,0.32875065]
[1764173310096,0.17005,2941.3,2940.0,0.32875065]
[1764173310704,0.17511623,2941.8,2941.2,0.8429]
[1764173310909,0.00509623,2941.8,2941.2,0.8429]
[1764173312505,2.94431608,2941.7,2940.6,0.3248]
[1764173312700,0.17005,2941.4,2940.6,0.3248]
[1764173312900,0.32899623,2941.8,2940.6,0.3248]
[1764173313099,0.369,2941.7,2940.6,0.3248]
[1764173314110,2.77,2941.7,2940.6,0.3248]
[1764173314517,3.33911623,2941.8,2940.6,0.3248]
[1764173315204,3.16909623,2941.8,2940.6,0.3248]
[1764173316409,0.17004,2941.5,2940.6,0.3248]
[1764173316914,0.38464,2941.5,2940.6,0.3248]
[1764173317205,0.00509623,2941.8,2940.0,0.32875065]
[1764173317411,0.17005,2941.3,2940.1,0.87240371]
[1764173317613,0.17005,2941.3,2940.0,0.32875065]
[1764173317806,0.17005,2941.3,2940.1,0.87234769]
[1764173318011,0.17005,2941.3,2940.0,0.32875065]
[1764173318216,1.32205,2941.3,2940.1,0.87160766]
[1764173318416,0.17005,2941.3,2940.2,0.87160766]
[1764173318617,0.17005,2941.3,2940.3,0.87160766]
[1764173318916,0.17005,2941.3,2940.0,1.2276242]
[1764173319115,0.17005,2941.3,2940.1,0.87258866]
[1764173319318,0.17006,2941.2,2940.2,0.87258866]
[1764173319515,0.17006,2941.2,2940.3,0.87258866]
[1764173319716,0.17006,2941.2,2940.5,0.2924]
[1764173320114,0.4557,2940.6,2940.1,0.89887355]
[1764173320318,0.609,2941.1,2940.8,0.4934]
[1764173320520,0.609,2941.1,2940.5,0.2924]
[1764173320912,0.77906,2941.1,2940.5,0.2924]
[1764173321308,0.17006,2941.1,2940.6,0.87653195]
[1764173321517,0.17006,2941.1,2940.5,0.2924]
[1764173321717,0.17006,2941.1,2940.6,0.87655507]
[1764173321917,0.17006,2941.1,2940.5,0.2924]
[1764173322117,0.17006,2941.1,2940.6,0.87655508]
[1764173322313,0.17006,2941.1,2940.7,0.87706189]
[1764173322517,0.17006,2941.1,2940.5,0.2924]
[1764173322518,0.17006,2941.1,2941.0,0.7858]
[1764173322721,0.62576,2941.1,2940.6,0.89887355]
[1764173322922,0.62576,2941.1,2940.7,0.87686912]
[1764173323121,0.62576,2941.1,2940.8,0.87686912]
[1764173323324,0.62576,2941.1,2940.9,0.87686912]
[1764173323524,0.17006,2941.1,2941.0,1.66266912]
[1764173323922,0.17006,2941.1,2941.0,0.7858]
[1764173324122,0.17006,2941.1,2941.0,1.66340235]
[1764173324419,0.17003,2941.7,2941.0,1.66340235]
[1764173324624,0.17004,2941.5,2941.1,0.87760235]
[1764173324822,0.17006,2941.2,2940.8,0.89887355]
[1764173325024,0.4557,2941.0,2940.9,0.87755805]
[1764173325827,0.17006,2941.1,2941.0,0.7858]
[1764173326019,0.17006,2941.1,2941.0,2.5622316]
[1764173327418,3.69003,2941.7,2941.0,2.5622316]
[1764173327624,0.17003,2941.7,2941.1,0.87755805]
[1764173327827,0.17003,2941.6,2941.2,0.87755805]
[1764173328127,0.62574,2941.4,2941.3,0.87755805]
[1764173328320,0.62574,2941.4,2941.0,1.19127355]
[1764173328521,2.81822788,2941.5,2940.7,1.20280522]
[1764173328723,0.17007,2941.1,2940.5,0.2924]
[1764173329030,0.17007,2940.9,2940.5,0.2924]
[1764173329223,0.17007,2940.9,2940.8,0.4934]
[1764173331632,0.17008,2940.7,2940.5,0.2924]
[1764173331933,0.4557,2940.4,2940.2,1.20280522]
[1764173332131,0.45893784,2940.4,2940.2,1.20280522]
[1764173332330,0.45893784,2940.4,2940.1,1.20280522]
[1764173332837,0.00323784,2940.4,2940.3,0.4934]
[1764173333028,0.17333784,2940.4,2940.3,0.4934]
[1764173333236,0.17333784,2940.4,2940.0,0.29635065]
[1764173333629,0.17333784,2940.4,2940.3,0.4934]
[1764173335833,0.00323784,2940.4,2940.3,0.4934]
[1764173338532,0.62903784,2940.4,2940.0,1.49915587]
[1764173338730,0.62903784,2940.4,2940.0,0.29635065]
[1764173339132,0.17333784,2940.4,2940.3,0.4934]
[1764173340231,0.17333784,2940.4,2940.0,0.00395065]
[1764173340232,0.4557,2940.1,2940.0,0.00395065]
[1764173340426,0.4557,2940.1,2940.0,0.4934]
[1764173340634,0.17012,2940.2,2940.0,1.62465386]
[1764173340840,0.00323784,2940.4,2940.3,0.4934]
[1764173341033,0.00323784,2940.4,2940.3,1.33218498]
[1764173341434,0.00323784,2940.4,2940.3,1.33612008]
[1764173349245,0.45893784,2940.4,2940.3,0.0039351]
[1764173349837,0.62903784,2940.4,2940.3,0.0039351]
[1764173350435,0.17333784,2940.4,2940.3,0.4791351]
[1764173351040,0.62463784,2940.4,2940.3,0.0039351]
[1764173351849,1.84737786,2940.4,2940.3,0.0039351]
[1764173353639,0.4513,2940.1,2940.0,0.2924]
[1764173353841,0.4513,2940.1,2940.0,0.7676]
[1764173354041,0.17013,2939.9,2939.5,0.3248]
[1764173354241,0.4513,2939.6,2939.5,0.3248]
[1764173354445,0.00509623,2940.0,2939.9,0.4752]
[1764173354647,0.00509623,2940.0,2939.9,0.47941889]
[1764173354847,0.45639623,2940.0,2939.9,0.47941889]
[1764173355044,0.45639623,2940.0,2939.5,0.3248]
[1764173355444,0.00509623,2940.0,2939.9,0.4752]
[1764173356053,0.00509623,2940.0,2939.9,0.47890805]
[1764173357651,0.00509623,2940.0,2939.9,3.08253593]
[1764173357838,0.00509623,2940.0,2939.9,0.47890805]
[1764173360053,0.45639623,2940.0,2939.9,0.47890805]
[1764173360750,0.67099623,2940.0,2939.9,0.00370805]
[1764173360955,0.67099623,2940.0,2939.5,0.3248]
[1764173361153,0.84112623,2940.0,2939.5,0.3248]
[1764173361350,0.21969623,2940.0,2939.5,0.3248]
[1764173361555,0.00509623,2940.0,2939.5,0.3248]
[1764173361950,0.00509623,2940.0,2939.5,0.32798867]
[1764173362353,0.17014,2939.8,2939.5,0.32798867]
[1764173362548,0.17014,2939.8,2939.7,0.4752]
[1764173363858,0.00509623,2940.0,2939.9,0.4752]
[1764173366657,0.17521623,2940.0,2939.9,0.4752]
[1764173367857,0.17014,2939.8,2939.5,0.29688867]
[1764173368059,0.62144,2939.7,2939.6,0.4752]
[1764173368852,0.4513,2939.6,2939.5,0.29688867]
[1764173369052,1.67315283,2939.6,2939.5,0.29688867]
[1764173369257,1.22694906,2940.0,2939.9,0.4752]
[1764173369564,0.00509623,2940.0,2939.9,0.4752]
[1764173374075,0.45639623,2940.0,2939.9,0.4752]
[1764173374275,0.17521623,2940.0,2939.9,0.4752]
[1764173381985,0.00509623,2940.0,2939.9,0.4752]
[1764173382890,0.00323784,2940.4,2940.3,0.4488]
[1764173387692,0.17333784,2940.4,2940.3,0.4488]
[1764173390494,0.00323784,2940.4,2940.3,0.4488]
[1764173398591,1.22185283,2941.1,2941.0,0.7356]
[1764173398792,0.63195,2941.3,2941.2,0.4488]
[1764173399198,0.17005,2941.3,2941.2,0.4488]
[1764173399594,0.17305007,2941.3,2941.2,0.4488]
[1764173400393,0.00300007,2941.3,2941.2,0.4488]
[1764173400591,1.22185283,2942.3,2942.2,0.4488]
[1764173400803,1.39183283,2942.5,2942.4,0.4488]
[1764173401200,0.63188,2942.5,2942.0,0.2868]
[1764173401403,0.4619,2942.1,2942.0,0.7356]
[1764173401699,0.63188,2942.5,2942.4,0.4488]
[1764173401904,0.63549515,2942.5,2942.0,0.29021152]
[1764173402489,0.63549515,2942.5,2942.4,0.4488]
[1764173402696,0.17359515,2942.5,2942.4,0.4488]
[1764173402896,0.63549515,2942.5,2942.4,0.4488]
[1764173403291,0.63549515,2942.5,2942.0,0.29021152]
[1764173403292,0.16999,2942.4,2942.0,0.29021152]
[1764173403504,0.16999,2942.4,2942.3,0.4488]
[1764173404104,0.63189,2942.4,2942.3,0.4488]
[1764173404305,0.16999,2942.4,2942.3,0.4488]
[1764173404701,0.63189,2942.4,2942.0,0.29021152]
[1764173405006,0.00361515,2942.5,2942.4,0.4488]
[1764173406009,0.46551515,2942.5,2942.0,0.29021152]
[1764173406705,0.16999,2942.4,2942.0,0.29021152]
[1764173406908,0.4815,2942.1,2942.0,0.75811152]
[1764173407297,0.6515,2942.1,2942.0,0.75811152]
[1764173408009,0.17,2942.1,2942.0,0.75811152]
[1764173409206,0.6515,2942.1,2942.0,0.75811152]
[1764173409700,0.6515,2942.1,2942.0,0.00341152]
[1764173410211,0.6515,2942.1,2942.0,0.75531152]
[1764173410411,0.6515,2942.1,2942.0,0.28741152]
[1764173410607,0.6515,2942.1,2942.0,0.00341152]
[1764173413208,0.6515,2942.1,2942.0,0.75531152]
[1764173414108,0.6515,2942.1,2942.0,0.00341152]
[1764173414307,0.6515,2942.1,2942.0,0.75531152]
[1764173414516,0.17,2942.1,2942.0,0.75531152]
[1764173415203,0.6515,2942.1,2942.0,0.75531152]
[1764173418624,0.6515,2942.1,2942.0,0.00341152]
[1764173419021,0.17,2942.1,2942.0,0.00341152]
[1764173419314,1.32816798,2942.5,2942.4,0.4679]
[1764173419315,0.00361515,2942.5,2942.4,0.4679]
[1764173423920,0.16995,2943.0,2942.9,0.4679]
[1764173425026,0.17376946,2943.0,2942.9,0.4679]
[1764173425221,1.22185283,2943.9,2943.8,0.4679]
[1764173425426,0.16988,2944.3,2943.8,0.4679]
[1764173425622,0.65138,2944.3,2944.0,0.284]
[1764173426226,0.4815,2944.0,2943.9,0.00509623]
[1764173426426,0.17316071,2944.3,2944.0,0.284]
[1764173427323,0.4815,2944.0,2943.9,0.00509623]
[1764173427528,0.65139,2944.0,2943.9,0.00509623]
[1764173427823,0.00328071,2944.3,2944.2,0.4679]
[1764173428030,0.00328071,2944.3,2944.2,0.47177673]
[1764173428220,0.48478071,2944.3,2944.2,0.00387673]
[1764173428415,0.65466071,2944.3,2944.2,0.00387673]
[1764173428721,0.17316071,2944.3,2944.2,0.47177673]
[1764173428914,0.65466071,2944.3,2944.2,0.00387673]
[1764173432233,0.65466071,2944.3,2944.2,0.47177673]
[1764173433022,0.17316071,2944.3,2944.2,0.47177673]
[1764173433626,0.65466071,2944.3,2944.2,0.47177673]
[1764173436626,0.17316071,2944.3,2944.2,0.47177673]
[1764173439437,0.63426071,2944.3,2944.2,0.00387673]
[1764173440239,0.63426071,2944.3,2944.2,0.48557673]
[1764173440640,0.63426071,2944.3,2944.2,0.00387673]
[1764173441231,0.63426071,2944.3,2943.5,0.7756]
[1764173441232,0.63102,2943.6,2943.5,0.7756]
[1764173441442,0.16992,2943.6,2943.5,0.7756]
[1764173441638,0.16989,2944.1,2944.0,0.7756]
[1764173441841,0.4611,2943.6,2943.5,0.7756]
[1764173442246,0.4611,2943.6,2943.5,0.77803077]
[1764173442641,0.16991,2943.8,2943.5,0.77803077]
[1764173443145,0.63101,2943.8,2943.7,0.4817]
[1764173443646,0.4611,2943.6,2943.5,0.29633077]
[1764173444037,0.4611,2943.6,2943.5,0.77803077]
[1764173444239,0.63102,2943.6,2943.5,0.77803077]
[1764173445147,0.16992,2943.6,2943.5,0.77803077]
[1764173445351,0.63102,2943.6,2943.5,0.00243077]
[1764173446053,0.16992,2943.6,2943.5,0.77803077]
[1764173447554,0.00328071,2944.3,2944.2,0.4817]
[1764173452662,0.00328071,2944.3,2944.2,3.08036868]
[1764173452968,0.00509623,2944.4,2944.3,0.4817]
[1764173453757,0.00880266,2944.4,2944.3,0.4817]
[1764173454460,0.16984,2944.9,2944.8,0.4817]
[1764173454857,1.22185283,2945.5,2944.8,0.4817]
[1764173455059,1.39166283,2945.5,2944.8,0.4817]
[1764173455258,1.39166283,2945.4,2944.8,0.4817]
[1764173455464,1.85785906,2945.4,2945.3,0.4817]
[1764173455758,0.63600623,2945.4,2945.3,0.4817]
[1764173457357,0.63600623,2945.4,2945.0,0.2939]
[1764173458050,0.4611,2945.1,2944.9,0.00509623]
[1764173458255,0.4611,2945.0,2944.9,0.48679623]
[1764173458858,0.4611,2945.0,2944.9,0.00509623]
[1764173459056,0.4611,2945.0,2944.9,0.48679623]
[1764173459263,0.63094,2945.0,2944.9,0.48679623]
[1764173460861,0.63094,2945.0,2944.9,0.00509623]
[1764173461365,0.16984,2945.0,2944.9,0.48679623]
[1764173461560,0.63094,2945.0,2944.9,0.48679623]
[1764173461766,0.16984,2945.0,2944.9,0.48679623]
[1764173462265,0.63094,2945.0,2944.9,0.48679623]
[1764173462760,0.63094,2945.0,2944.9,0.00509623]
[1764173462961,0.16986,2944.6,2944.5,0.7756]
[1764173463167,0.16983,2945.2,2945.1,0.4817]
[1764173463467,0.63093,2945.1,2945.0,0.7756]
[1764173463668,0.00272773,2945.5,2945.3,0.4817]
[1764173463870,0.00272773,2945.5,2945.4,0.4817]
[1764173464868,0.00272773,2945.5,2945.3,2.59866868]
[1764173464869,0.16978,2946.0,2945.9,0.4817]
[1764173465670,0.17252094,2946.0,2945.9,0.48439103]
[1764173467159,0.00509623,2946.2,2946.1,0.4817]
[1764173468372,0.00822462,2946.2,2946.1,0.4817]
[1764173469772,0.6428,2945.6,2945.5,0.2939]
[1764173469962,0.1587,2946.0,2944.5,0.2939]
[1764173469963,0.64282,2945.3,2944.5,0.2939]
[1764173470170,0.16983,2945.1,2944.5,0.2939]
[1764173470866,0.64283,2945.1,2945.0,0.7453]
[1764173471066,0.16983,2945.1,2945.0,0.7453]
[1764173471669,0.64283,2945.1,2945.0,0.7453]
[1764173471870,0.473,2944.9,2944.8,0.00509623]
[1764173472264,0.64284,2944.9,2944.8,0.00509623]
[1764173472471,0.64284,2944.9,2943.5,0.2698]
[1764173472472,0.473,2943.7,2943.5,0.2698]
[1764173472678,0.64292,2943.6,2943.0,0.2698]
[1764173473072,0.16992,2943.6,2943.5,0.7453]